fUSD/lending_fUSD_20260304
["ID","MTS","AMOUNT","RATE_DAILY","PERIOD"]
[407672438,1772664817045,-313.258543,0.00041096,120]
[407672439,1772664817073,-313.258543,0.00041096,120]
[407672440,1772664817101,-313.258543,0.00041096,120]
[407672441,1772664817128,-313.258537,0.00041096,120]
[407672442,1772664817156,-153.993327,0.00041096,120]
[407672443,1772664817184,-151.0,0.00041096,120]
[407672444,1772664817212,-151.0,0.00041096,120]
[407672445,1772664817239,-245.808393,0.00041096,120]
[407672446,1772664817266,-169.017933,0.00041096,120]
[407672447,1772664817295,-151.0,0.00041096,120]
[407672448,1772664817322,-151.0,0.00041096,120]
[407672449,1772664817349,-413.36009,0.00041096,60]
[407672450,1772664817377,-413.36009,0.00041096,60]
[407672451,1772664817407,-413.36009,0.00041096,60]
[407672452,1772664817435,-413.36009,0.00041096,60]
[407672453,1772664817462,-413.36009,0.00041096,60]
[407672454,1772664817490,-413.36009,0.00041096,60]
[407672455,1772664817518,-413.36009,0.00041096,60]
[407672456,1772664817547,-413.36009,0.00041096,60]
[407672457,1772664817575,-413.36009,0.00041096,60]
[407672458,1772664817603,-413.36009,0.00041096,60]
[407672459,1772664817630,-413.36009,0.00041096,60]
[407672460,1772664817658,-413.36009,0.00041096,60]
[407672461,1772664817688,-413.36009,0.00041096,60]
[407672462,1772664817717,-413.36009,0.00041096,60]
[407672463,1772664817745,-413.36009,0.00041096,60]
[407672464,1772664817773,-413.36009,0.00041096,60]
[407672465,1772664817806,-413.36009,0.00041096,60]
[407672466,1772664817848,-413.36009,0.00041096,60]
[407672467,1772664817890,-413.36009,0.00041096,60]
[407672468,1772664817931,-413.360087,0.00041096,60]
[407672469,1772664817968,-151.0,0.00041096,120]
[407672470,1772664818007,-151.0,0.00041096,120]
[407672471,1772664818046,-151.0,0.00041096,120]
[407672472,1772664818107,-151.0,0.00041096,120]
[407672473,1772664818157,-235.46476,0.00041096,120]
[407672474,1772664818202,-151.0,0.00041096,120]
[407672475,1772664818246,-151.0,0.00041096,120]
[407672476,1772664818283,-151.0,0.00041096,120]
[407672477,1772664818324,-151.0,0.00041096,120]
[407672478,1772664818358,-151.0,0.00041096,120]
[407672479,1772664818397,-151.0,0.00041096,120]
[407672480,1772664818432,-151.0,0.00041096,120]
[407672481,1772664818478,-151.0,0.00041096,120]
[407672482,1772664818526,-188.263917,0.00041096,120]
[407672483,1772664818564,-257.481422,0.00041096,120]
[407672484,1772664818602,-151.0,0.00041096,120]
[407672485,1772664818640,-293.59644156,0.00041096,120]
[407672486,1772664818678,-151.0,0.00041096,120]
[407672487,1772664818715,-151.0,0.00041096,120]
[407672488,1772664818749,-151.0,0.00041096,120]
[407672489,1772664818785,-151.0,0.00041096,120]
[407672490,1772664818821,-171.05576,0.00041096,120]
[407672491,1772664818863,-181.836162,0.00041096,120]
[407672492,1772664818903,-151.0,0.00041096,120]
[407672493,1772664818940,-151.0,0.00041096,120]
[407672494,1772664818977,-151.0,0.00041096,120]
[407672495,1772664819013,-4345.103589,0.00041096,120]
[407672496,1772664819048,-4345.103589,0.00041096,120]
[407672497,1772664819086,-4345.103589,0.00041096,120]
[407672498,1772664819122,-4345.103589,0.00041096,120]
[407672499,1772664819158,-4345.103589,0.00041096,120]
[407672500,1772664819193,-4345.103589,0.00041096,120]
[407672501,1772664819228,-4345.103589,0.00041096,120]
[407672502,1772664819262,-4345.103589,0.00041096,120]
[407672503,1772664819301,-151.0,0.00041096,120]
[407672504,1772664819334,-151.0,0.00041096,120]
[407672505,1772664819366,-4345.103589,0.00041096,120]
[407672506,1772664819400,-151.0,0.00041096,120]
[407672507,1772664819435,-4345.103589,0.00041096,120]
[407672508,1772664819468,-278.293554,0.00041096,120]
[407672509,1772664819492,-4345.103589,0.00041096,120]
[407672510,1772664819741,-4345.103589,0.00041096,120]
[407672511,1772664819782,-4345.103589,0.00041096,120]
[407672512,1772664819808,-4345.103589,0.00041096,120]
[407672513,1772664819833,-4345.103589,0.00041096,120]
[407672514,1772664819857,-4345.103589,0.00041096,120]
[407672515,1772664819882,-4345.103589,0.00041096,120]
[407672516,1772664819908,-4345.103589,0.00041096,120]
[407672517,1772664819933,-4345.103589,0.00041096,120]
[407672518,1772664819957,-151.0,0.00041096,120]
[407672519,1772664819981,-4345.10358,0.00041096,120]
[407672520,1772664820004,-151.0,0.00041096,120]
[407672521,1772664820028,-162.498723,0.00041096,120]
[407672522,1772664820053,-157.411749,0.00041096,120]
[407672523,1772664820078,-615.1,0.00041096,30]
[407672524,1772664820104,-615.1,0.00041096,30]
[407672525,1772664820129,-615.1,0.00041096,30]
[407672526,1772664820155,-615.1,0.00041096,30]
[407672527,1772664820179,-615.1,0.00041096,30]
[407672528,1772664820203,-615.1,0.00041096,30]
[407672529,1772664820227,-615.1,0.00041096,30]
[407672530,1772664820251,-615.1,0.00041096,30]
[407672531,1772664820276,-615.1,0.00041096,30]
[407672532,1772664820302,-615.1,0.00041096,30]
[407672533,1772664820327,-615.1,0.00041096,30]
[407672534,1772664820350,-615.1,0.00041096,30]
[407672535,1772664820375,-615.1,0.00041096,30]
[407672536,1772664820399,-615.1,0.00041096,30]
[407672537,1772664820424,-615.1,0.00041096,30]
[407672538,1772664820449,-615.1,0.00041096,30]
[407672539,1772664820476,-615.1,0.00041096,30]
[407672540,1772664820501,-615.1,0.00041096,30]
[407672541,1772664820526,-615.1,0.00041096,30]
[407672542,1772664820550,-615.1,0.00041096,30]
[407672543,1772664820576,-184.550873,0.00041096,120]
[407672544,1772664820601,-151.0,0.00041096,120]
[407672545,1772664820625,-167.12941,0.00041096,120]
[407672546,1772664820649,-151.0,0.00041096,120]
[407672547,1772664820672,-151.0,0.00041096,120]
[407672548,1772664820698,-151.0,0.00041096,120]
[407672549,1772664820723,-151.0,0.00041096,120]
[407672550,1772664820749,-151.0,0.00041096,120]
[407672551,1772664820773,-151.0,0.00041096,120]
[407672552,1772664820798,-151.0,0.00041096,120]
[407672553,1772664820822,-151.0,0.00041096,120]
[407672554,1772664820850,-151.0,0.00041096,120]
[407672555,1772664820874,-151.0,0.00041096,120]
[407672556,1772664820899,-151.0,0.00041096,120]
[407672557,1772664820923,-151.0,0.00041096,120]
[407672558,1772664820949,-151.413511,0.00041096,120]
[407672559,1772664820974,-151.0,0.00041096,120]
[407672560,1772664820999,-151.413511,0.00041096,120]
[407672561,1772664821023,-151.0,0.00041096,120]
[407672562,1772664821047,-151.413511,0.00041096,120]
[407672563,1772664821072,-151.0,0.00041096,120]
[407672564,1772664821098,-151.413511,0.00041096,120]
[407672565,1772664821122,-151.0,0.00041096,120]
[407672566,1772664821147,-151.413511,0.00041096,120]
[407672567,1772664821172,-151.0,0.00041096,120]
[407672568,1772664821197,-151.413511,0.00041096,120]
[407672569,1772664821222,-151.0,0.00041096,120]
[407672570,1772664821247,-151.413511,0.00041096,120]
[407672571,1772664821271,-282.7,0.00041096,120]
[407672572,1772664821298,-151.413511,0.00041096,120]
[407672573,1772664821326,-151.413511,0.00041096,120]
[407672574,1772664821352,-151.413511,0.00041096,120]
[407672575,1772664821377,-151.0,0.00041096,120]
[407672576,1772664821402,-151.413511,0.00041096,120]
[407672577,1772664821427,-151.0,0.00041096,120]
[407672578,1772664821453,-151.413511,0.00041096,120]
[407672579,1772664821479,-151.0,0.00041096,120]
[407672580,1772664821504,-151.413511,0.00041096,120]
[407672581,1772664821530,-151.0,0.00041096,120]
[407672582,1772664821555,-151.413511,0.00041096,120]
[407672583,1772664821580,-151.0,0.00041096,120]
[407672584,1772664821606,-151.0,0.00041096,120]
[407672585,1772664821631,-151.413511,0.00041096,120]
[407672586,1772664821658,-151.0,0.00041096,120]
[407672587,1772664821684,-151.0,0.00041096,120]
[407672588,1772664821709,-151.413511,0.00041096,120]
[407672589,1772664821735,-151.0,0.00041096,120]
[407672590,1772664821760,-151.0,0.00041096,120]
[407672591,1772664821786,-151.0,0.00041096,120]
[407672592,1772664821810,-151.413511,0.00041096,120]
[407672593,1772664821836,-151.0,0.00041096,120]
[407672594,1772664821861,-151.413511,0.00041096,120]
[407672595,1772664821887,-151.0,0.00041096,120]
[407672596,1772664821914,-151.413511,0.00041096,120]
[407672597,1772664821938,-163.55685,0.00041096,120]
[407672598,1772664821962,-151.413519,0.00041096,120]
[407672599,1772664821986,-151.0,0.00041096,120]
[407672600,1772664822011,-151.0,0.00041096,120]
[407672601,1772664822035,-151.0,0.00041096,120]
[407672602,1772664822192,-151.0,0.00041096,120]
[407672603,1772664822218,-151.0,0.00041096,120]
[407672604,1772664822244,-1078.449126,0.00041096,120]
[407672605,1772664822268,-1078.449126,0.00041096,120]
[407672606,1772664822293,-1078.449131,0.00041096,120]
[407672607,1772664822317,-183.929256,0.00041096,120]
[407672608,1772664822342,-202.041146,0.00041096,120]
[407672609,1772664822365,-1507.121597,0.00041096,120]
[407672610,1772664822390,-1507.121597,0.00041096,120]
[407672611,1772664822413,-1507.121597,0.00041096,120]
[407672612,1772664822438,-1507.121597,0.00041096,120]
[407672613,1772664822462,-1507.121597,0.00041096,120]
[407672614,1772664822486,-1507.121597,0.00041096,120]
[407672615,1772664822511,-1507.121597,0.00041096,120]
[407672616,1772664822535,-1507.121597,0.00041096,120]
[407672617,1772664822559,-1507.121597,0.00041096,120]
[407672618,1772664822582,-1507.121597,0.00041096,120]
[407672619,1772664822607,-1507.121597,0.00041096,120]
[407672620,1772664822631,-1507.121597,0.00041096,120]
[407672621,1772664822655,-1507.121597,0.00041096,120]
[407672622,1772664822679,-1507.121597,0.00041096,120]
[407672623,1772664822703,-1507.121597,0.00041096,120]
[407672624,1772664822727,-1507.121597,0.00041096,120]
[407672625,1772664822751,-1507.121597,0.00041096,120]
[407672626,1772664822777,-1507.121597,0.00041096,120]
[407672627,1772664822801,-1507.121597,0.00041096,120]
[407672628,1772664822825,-1507.121604,0.00041096,120]
[407672629,1772664822856,-151.0,0.00041096,120]
[407672630,1772664822880,-151.0,0.00041096,120]
[407672631,1772664822907,-183.71532,0.00041096,120]
[407672632,1772664822932,-169.21218,0.00041096,120]
[407672633,1772664822957,-151.0,0.00041096,120]
[407672634,1772664822983,-151.0,0.00041096,120]
[407672635,1772664823008,-151.0,0.00041096,120]
[407672636,1772664823031,-151.0,0.00041096,120]
[407672637,1772664823055,-151.0,0.00041096,120]
[407672638,1772664823079,-151.0,0.00041096,120]
[407672639,1772664823103,-151.0,0.00041096,120]
[407672640,1772664823128,-151.0,0.00041096,120]
[407672641,1772664823151,-151.0,0.00041096,120]
[407672642,1772664823175,-152.366934,0.00041096,120]
[407672643,1772664823199,-151.0,0.00041096,120]
[407672644,1772664823225,-1133.037916,0.00041096,120]
[407672645,1772664823249,-151.0,0.00041096,120]
[407672646,1772664823274,-1133.037916,0.00041096,120]
[407672647,1772664823298,-151.0,0.00041096,120]
[407672648,1772664823323,-1133.037916,0.00041096,120]
[407672649,1772664823347,-151.0,0.00041096,120]
[407672650,1772664823372,-1133.037916,0.00041096,120]
[407672651,1772664823396,-151.0,0.00041096,120]
[407672652,1772664823421,-1133.037916,0.00041096,120]
[407672653,1772664823447,-151.0,0.00041096,120]
[407672654,1772664823472,-1133.037916,0.00041096,120]
[407672655,1772664823496,-171.406817,0.00041096,120]
[407672656,1772664823521,-1133.037916,0.00041096,120]
[407672657,1772664823545,-1133.037916,0.00041096,120]
[407672658,1772664823569,-151.0,0.00041096,120]
[407672659,1772664823594,-1133.037916,0.00041096,120]
[407672660,1772664823619,-151.0,0.00041096,120]
[407672661,1772664823643,-1133.037916,0.00041096,120]
[407672662,1772664823667,-151.0,0.00041096,120]
[407672663,1772664823692,-1133.037916,0.00041096,120]
[407672664,1772664823717,-151.0,0.00041096,120]
[407672665,1772664823743,-1133.037916,0.00041096,120]
[407672666,1772664823767,-151.0,0.00041096,120]
[407672667,1772664823792,-1133.037916,0.00041096,120]
[407672668,1772664823816,-182.708127,0.00041096,120]
[407672669,1772664823844,-1133.037916,0.00041096,120]
[407672670,1772664823870,-1133.037916,0.00041096,120]
[407672671,1772664823895,-1133.037916,0.00041096,120]
[407672672,1772664823922,-220.490651,0.00041096,120]
[407672673,1772664823946,-424.783829,0.00041096,120]
[407672674,1772664823970,-424.783829,0.00041096,120]
[407672675,1772664823996,-424.783829,0.00041096,120]
[407672676,1772664824020,-424.783829,0.00041096,120]
[407672677,1772664824043,-424.783829,0.00041096,120]
[407672678,1772664824078,-424.783829,0.00041096,120]
[407672679,1772664824105,-424.783829,0.00041096,120]
[407672680,1772664824131,-424.783829,0.00041096,120]
[407672681,1772664824156,-424.783829,0.00041096,120]
[407672682,1772664824181,-424.783829,0.00041096,120]
[407672683,1772664824207,-151.0,0.00041096,120]
[407672684,1772664824232,-424.783829,0.00041096,120]
[407672685,1772664824256,-151.0,0.00041096,120]
[407672686,1772664824281,-424.783829,0.00041096,120]
[407672687,1772664824307,-151.0,0.00041096,120]
[407672688,1772664824333,-424.783829,0.00041096,120]
[407672689,1772664824358,-151.0,0.00041096,120]
[407672690,1772664824383,-282.759197,0.00041096,120]
[407672691,1772664824410,-274.342636,0.00041096,120]
[407672692,1772664824436,-424.783829,0.00041096,120]
[407672693,1772664824460,-424.783829,0.00041096,120]
[407672694,1772664824486,-424.783829,0.00041096,120]
[407672695,1772664824512,-151.0,0.00041096,120]
[407672696,1772664824537,-286.124049,0.00041096,120]
[407672697,1772664824562,-151.0,0.00041096,120]
[407672698,1772664824587,-151.0,0.00041096,120]
[407672699,1772664824613,-151.0,0.00041096,120]
[407672700,1772664824638,-151.0,0.00041096,120]
[407672701,1772664824663,-151.0,0.00041096,120]
[407672702,1772664824690,-404.555167,0.00041096,120]
[407672703,1772664824715,-404.555167,0.00041096,120]
[407672704,1772664824740,-404.555167,0.00041096,120]
[407672705,1772664824765,-151.0,0.00041096,120]
[407672706,1772664824790,-404.555167,0.00041096,120]
[407672707,1772664824985,-151.0,0.00041096,120]
[407672708,1772664825011,-151.0,0.00041096,120]
[407672709,1772664825037,-151.0,0.00041096,120]
[407672710,1772664825063,-404.555167,0.00041096,120]
[407672711,1772664825089,-151.0,0.00041096,120]
[407672712,1772664825114,-404.555167,0.00041096,120]
[407672713,1772664825140,-404.555167,0.00041096,120]
[407672714,1772664825165,-213.281668,0.00041096,120]
[407672715,1772664825191,-404.555167,0.00041096,120]
[407672716,1772664825215,-404.555167,0.00041096,120]
[407672717,1772664825240,-404.555167,0.00041096,120]
[407672718,1772664825264,-404.555167,0.00041096,120]
[407672719,1772664825287,-404.555167,0.00041096,120]
[407672720,1772664825310,-404.555167,0.00041096,120]
[407672721,1772664825334,-404.555167,0.00041096,120]
[407672722,1772664825359,-404.555167,0.00041096,120]
[407672723,1772664825383,-404.555167,0.00041096,120]
[407672724,1772664825407,-160.371777,0.00041096,120]
[407672725,1772664825433,-1668.137664,0.00041096,31]
[407672726,1772664825460,-1668.137664,0.00041096,31]
[407672727,1772664825486,-1668.137664,0.00041096,31]
[407672728,1772664825513,-255.057634,0.00041096,120]
[407672729,1772664825540,-1668.137664,0.00041096,31]
[407672730,1772664825566,-255.057634,0.00041096,120]
[407672731,1772664825592,-255.057634,0.00041096,120]
[407672732,1772664825616,-1668.137664,0.00041096,31]
[407672733,1772664825643,-255.057634,0.00041096,120]
[407672734,1772664825668,-1668.137664,0.00041096,31]
[407672735,1772664825693,-255.057634,0.00041096,120]
[407672736,1772664825718,-1668.137664,0.00041096,31]
[407672737,1772664825744,-255.057634,0.00041096,120]
[407672738,1772664825768,-1668.137664,0.00041096,31]
[407672739,1772664825793,-255.057634,0.00041096,120]
[407672740,1772664825819,-1668.137664,0.00041096,31]
[407672741,1772664825847,-1668.137664,0.00041096,31]
[407672742,1772664825874,-255.057634,0.00041096,120]
[407672743,1772664825900,-1668.137664,0.00041096,31]
[407672744,1772664825927,-255.057634,0.00041096,120]
[407672745,1772664825954,-1668.137664,0.00041096,31]
[407672746,1772664825980,-255.057634,0.00041096,120]
[407672747,1772664826005,-1668.137664,0.00041096,31]
[407672748,1772664826030,-255.057634,0.00041096,120]
[407672749,1772664826056,-1668.137664,0.00041096,31]
[407672750,1772664826082,-255.057634,0.00041096,120]
[407672751,1772664826107,-1668.137664,0.00041096,31]
[407672752,1772664826132,-1668.137664,0.00041096,31]
[407672753,1772664826158,-255.057634,0.00041096,120]
[407672754,1772664826184,-255.057634,0.00041096,120]
[407672755,1772664826211,-167.0,0.00041096,31]
[407672756,1772664826236,-255.057634,0.00041096,120]
[407672757,1772664826262,-255.057634,0.00041096,120]
[407672758,1772664826287,-151.0,0.00041096,120]
[407672759,1772664826312,-151.0,0.00041096,120]
[407672760,1772664826336,-151.0,0.00041096,120]
[407672761,1772664826361,-582.238431,0.00041096,120]
[407672762,1772664826386,-582.238431,0.00041096,120]
[407672763,1772664826412,-582.238431,0.00041096,120]
[407672764,1772664826438,-151.0,0.00041096,120]
[407672765,1772664826464,-151.0,0.00041096,120]
[407672766,1772664826490,-582.238431,0.00041096,120]
[407672767,1772664826516,-165.326245,0.00041096,120]
[407672768,1772664826541,-165.326245,0.00041096,120]
[407672769,1772664826567,-151.0,0.00041096,120]
[407672770,1772664826592,-151.0,0.00041096,120]
[407672771,1772664826617,-151.0,0.00041096,120]
[407672772,1772664826642,-1133.037916,0.00041096,120]
[407672773,1772664826668,-1133.037916,0.00041096,120]
[407672774,1772664826694,-151.0,0.00041096,120]
[407672775,1772664826720,-1133.037916,0.00041096,120]
[407672776,1772664826746,-1133.037924,0.00041096,120]
[407672777,1772664826771,-424.783829,0.00041096,120]
[407672778,1772664826797,-424.783829,0.00041096,120]
[407672779,1772664826822,-424.783829,0.00041096,120]
[407672780,1772664826851,-424.783821,0.00041096,120]
[407672781,1772664826876,-151.0,0.00041096,120]
[407672782,1772664826902,-404.555167,0.00041096,120]
[407672783,1772664826929,-151.0,0.00041096,120]
[407672784,1772664826956,-404.555167,0.00041096,120]
[407672785,1772664826982,-404.555167,0.00041096,120]
[407672786,1772664827007,-404.555162,0.00041096,120]
[407672787,1772664827031,-1668.137664,0.00041096,31]
[407672788,1772664827056,-255.057634,0.00041096,120]
[407672789,1772664827082,-1668.137664,0.00041096,31]
[407672790,1772664827108,-255.057634,0.00041096,120]
[407672791,1772664827134,-1668.137664,0.00041096,31]
[407672792,1772664827159,-255.057634,0.00041096,120]
[407672793,1772664827185,-1668.137672,0.00041096,31]
[407672794,1772664827211,-255.057643,0.00041096,120]
[407672795,1772664827235,-1200.0,0.00041119,60]
[407672796,1772664827259,-12500.0,0.0004125,120]
[407672797,1772664827283,-56159.75770089,0.000415,120]
[407672798,1772664827307,-12500.0,0.000415,120]
[407672799,1772664827332,-170.2,0.00041546,120]
[407672800,1772664827357,-900.0,0.00041667,60]
[407672801,1772664827381,-12500.0,0.0004175,120]
[407672802,1772664827408,-248.038,0.00041781,120]
[407672803,1772664827433,-3821.26,0.000418,30]
[407672804,1772664827459,-203.513978,0.000418,120]
[407672805,1772664827485,-1100.0,0.00041941,60]
[407672806,1772664827510,-10000.0,0.00042,120]
[407672807,1772664827539,-180.455,0.00042098,60]
[407672808,1772664827565,-151.0,0.00042108,120]
[407672809,1772664827590,-151.0,0.00042108,120]
[407672810,1772664827621,-184.893868,0.00042108,120]
[407672811,1772664827791,-582.238431,0.00042108,120]
[407672812,1772664827819,-582.238431,0.00042108,120]
[407672813,1772664827847,-151.0,0.00042108,120]
[407672814,1772664827873,-582.238431,0.00042108,120]
[407672815,1772664827898,-151.0,0.00042108,120]
[407672816,1772664827924,-151.0,0.00042108,120]
[407672817,1772664827948,-233.519666,0.00042108,120]
[407672818,1772664827972,-582.238431,0.00042108,120]
[407672819,1772664827996,-165.326245,0.00042108,120]
[407672820,1772664828021,-248.038,0.00042108,120]
[407672821,1772664828045,-165.326245,0.00042108,120]
[407672822,1772664828068,-1114.62,0.00042191,120]
[407672823,1772664828092,-1114.62,0.00042191,120]
[407672824,1772664828116,-1114.62,0.00042191,120]
[407672825,1772664828140,-1114.62,0.00042191,120]
[407672826,1772664828164,-1114.62,0.00042191,120]
[407672827,1772664828187,-1114.62,0.00042191,120]
[407672828,1772664828212,-1114.62,0.00042191,120]
[407672829,1772664828236,-1114.62,0.00042191,120]
[407672830,1772664828260,-1114.62,0.00042191,120]
[407672831,1772664828285,-1114.62,0.00042191,120]
[407672832,1772664828309,-1114.62,0.00042191,120]
[407672833,1772664828333,-1114.62,0.00042191,120]
[407672834,1772664828356,-1114.62,0.00042191,120]
[407672835,1772664828382,-1114.62,0.00042191,120]
[407672836,1772664828408,-1114.62,0.00042191,120]
[407672837,1772664828434,-1114.62,0.00042191,120]
[407672838,1772664828459,-1114.62,0.00042191,120]
[407672839,1772664828485,-1114.62,0.00042191,120]
[407672840,1772664828509,-1114.62,0.00042191,120]
[407672841,1772664828534,-1114.62,0.00042191,120]
[407672842,1772664828559,-1114.62,0.00042191,120]
[407672843,1772664828583,-1114.62,0.00042191,120]
[407672844,1772664828606,-1114.62,0.00042191,120]
[407672845,1772664828630,-1114.79972972,0.00042191,120]
[407672846,1772664828654,-1200.0,0.00042215,60]
[407672847,1772664828677,-500.0,0.00042466,120]
[407672848,1772664828700,-500.0,0.00042466,120]
[407672849,1772664828723,-989.0,0.00042466,120]
[407672850,1772664828747,-1746.53138078,0.000425,60]
[407672851,1772664828770,-6214.66366063,0.000425,120]
[407672852,1772664828794,-1550.0,0.00042739,30]
[407672853,1772664828817,-900.0,0.00042763,60]
[407672854,1772664828847,-2675.2705969,0.0004288,60]
[407672855,1772664828872,-3821.26,0.00043,30]
[407672856,1772664828897,-38071.69124952,0.00043,30]
[407672857,1772664828922,-3011.0,0.00043,120]
[407672858,1772664828947,-600.0,0.00043,120]
[407672859,1772664828971,-600.0,0.00043,120]
[407672860,1772664828996,-600.0,0.00043,120]
[407672861,1772664829020,-600.0,0.00043,120]
[407672862,1772664829044,-600.0,0.00043,120]
[407672863,1772664829068,-547.59,0.00043,120]
[407672864,1772664829094,-10000.0,0.00043,120]
[407672865,1772664829119,-1100.0,0.00043037,60]
[407672866,1772664829143,-852.40341202,0.00043068,120]
[407672867,1772664829166,-200.0,0.00043068,120]
[407672868,1772664829191,-186.75,0.00043068,120]
[407672869,1772664829215,-210.0,0.00043068,120]
[407672870,1772664829239,-210.0,0.00043068,120]
[407672871,1772664829263,-210.0,0.00043068,120]
[407672872,1772664829287,-4195.21,0.000431,30]
[407672873,1772664829311,-1200.0,0.00043311,60]
[407672874,1772664829336,-204.32433317,0.0004373,120]
[407672875,1772664829360,-3821.26,0.000438,30]
[407672876,1772664829385,-10948.51,0.000438,120]
[407672877,1772664829409,-800.0,0.00043836,30]
[407672878,1772664829435,-20000.0,0.00043836,120]
[407672879,1772664829459,-900.0,0.00043859,60]
[407672880,1772664829483,-762.86,0.00043932,120]
[407672881,1772664829508,-5116.34471293,0.00044,30]
[407672882,1772664829532,-9999.97,0.00044,120]
[407672883,1772664829556,-1100.0,0.00044133,60]
[407672884,1772664829580,-220.42407267,0.00044164,120]
[407672885,1772664829603,-1200.0,0.00044407,60]
[407672886,1772664829629,-12102.28179754,0.00044433,54]
[407672887,1772664829653,-3110.07602819,0.000445,120]
[407672888,1772664829678,-866.0,0.000445,120]
[407672889,1772664829702,-151.668,0.00044638,30]
[407672890,1772664829727,-2023.61064618,0.000447,30]
[407672891,1772664829751,-900.0,0.00044955,60]
[407672892,1772664829777,-5000.0,0.00045,120]
[407672893,1772664829801,-5000.0,0.00045,120]
[407672894,1772664829827,-14441.52926183,0.00045,120]
[407672895,1772664829855,-10380.4439536,0.00045,120]
[407672896,1772664829880,-500.0,0.00045,120]
[407672897,1772664829904,-162.69,0.00045,120]
[407672898,1772664829932,-150.0,0.00045,120]
[407672899,1772664829957,-1000.0,0.00045,120]
[407672900,1772664829982,-4000.0,0.00045,120]
[407672901,1772664830007,-5240.894673,0.00045,120]
[407672902,1772664830033,-3011.0,0.00045,120]
[407672903,1772664830058,-43040.0,0.00045,30]
[407672904,1772664830083,-27957.08006224,0.00045,120]
[407672905,1772664830108,-5000.0,0.00045,120]
[407672906,1772664830134,-150.0,0.00045,30]
[407672907,1772664830158,-227.53,0.00045,30]
[407672908,1772664830185,-3395.35,0.00045,30]
[407672909,1772664830212,-1100.0,0.00045229,60]
[407672910,1772664830239,-4195.21,0.000453,30]
[407672911,1772664830266,-1760.02,0.000453,120]
[407672912,1772664830292,-482.54078724,0.000454,120]
[407672913,1772664830318,-858.54015141,0.000454,120]
[407672914,1772664830345,-4112.0,0.000455,120]
[407672915,1772664830512,-3000000.0,0.000455,120]
[407672916,1772664830540,-151.0,0.000455,120]
[407672917,1772664830569,-151.0,0.000455,120]
[407672918,1772664830597,-582.238431,0.000455,120]
[407672919,1772664830625,-582.238431,0.000455,120]
[407672920,1772664830653,-151.0,0.000455,120]
[407672921,1772664830681,-582.238431,0.000455,120]
[407672922,1772664830709,-151.0,0.000455,120]
[407672923,1772664830737,-151.0,0.000455,120]
[407672924,1772664830766,-582.238431,0.000455,120]
[407672925,1772664830792,-165.326245,0.000455,120]
[407672926,1772664830820,-248.038,0.000455,120]
[407672927,1772664830851,-1200.0,0.00045503,60]
[407672928,1772664830879,-389.18270823,0.00045578,50]
[407672929,1772664830906,-42000.0,0.00045822,30]
[407672930,1772664830933,-3821.26,0.000459,30]
[407672931,1772664830959,-40952.73340657,0.00046,120]
[407672932,1772664830987,-2000.0,0.00046,90]
[407672933,1772664831013,-3821.26,0.00046,30]
[407672934,1772664831039,-2104.41862824,0.00046,60]
[407672935,1772664831064,-379.0,0.00046027,120]
[407672936,1772664831090,-622.93189133,0.00046051,60]
[407672937,1772664831116,-176.7817912,0.00046151,120]